[Event "Early-Titled-Tuesday-Blitz-October-17-2023"]
[Site "Chess.com"]
[Date "2023.10.17"]
[Round "3"]
[White "CarlosjPineror"]
[Black "Arystanner"]
[Result "0-1"]
[WhiteElo "2498"]
[BlackElo "2794"]
[TimeControl "180+1"]
[EndTime "8:28:50 PDT"]
[Termination "Arystanner won by resignation"]

1. e4 {[%clk 0:03:00.9]} 1... c5 {[%clk 0:02:57.9]} 2. Nf3 {[%clk 0:02:55.3]}
2... e6 {[%clk 0:02:57.8]} 3. d4 {[%clk 0:02:46.9]} 3... cxd4 {[%clk 0:02:58.7]}
4. Nxd4 {[%clk 0:02:45.8]} 4... Nf6 {[%clk 0:02:59.2]} 5. Nc3 {[%clk 0:02:44.9]}
5... Nc6 {[%clk 0:02:59.7]} 6. Be3 {[%clk 0:02:05.3]} 6... Bb4 {[%clk
0:02:57.4]} 7. Bd3 {[%clk 0:01:53.8]} 7... d5 {[%clk 0:02:57.7]} 8. O-O {[%clk
0:01:44.6]} 8... Bxc3 {[%clk 0:02:56.5]} 9. bxc3 {[%clk 0:01:43.9]} 9... dxe4
{[%clk 0:02:53.3]} 10. Nxc6 {[%clk 0:01:39.7]} 10... bxc6 {[%clk 0:02:52.9]} 11.
Bc4 {[%clk 0:01:34.6]} 11... O-O {[%clk 0:02:46]} 12. Bc5 {[%clk 0:01:33.8]}
12... Re8 {[%clk 0:02:46.2]} 13. Qe2 {[%clk 0:01:31.1]} 13... Qa5 {[%clk
0:02:41.7]} 14. Bb4 {[%clk 0:01:29.7]} 14... Qf5 {[%clk 0:02:41.4]} 15. Qe3
{[%clk 0:01:27.8]} 15... Nd5 {[%clk 0:02:40.7]} 16. Qg3 {[%clk 0:01:19.2]} 16...
a5 {[%clk 0:02:31.5]} 17. Bc5 {[%clk 0:01:15.3]} 17... Ba6 {[%clk 0:02:31.8]}
18. Bxa6 {[%clk 0:01:12.8]} 18... Rxa6 {[%clk 0:02:32.7]} 19. Rab1 {[%clk
0:01:10]} 19... Nf4 {[%clk 0:02:32.8]} 20. Qe3 {[%clk 0:01:09]} 20... Nd5 {[%clk
0:02:27.1]} 21. Qg3 {[%clk 0:01:08.8]} 21... Raa8 {[%clk 0:02:23.7]} 22. Rfe1
{[%clk 0:01:03.3]} 22... Nf6 {[%clk 0:02:08.6]} 23. Bd4 {[%clk 0:00:59.5]} 23...
e5 {[%clk 0:02:09]} 24. Bc5 {[%clk 0:00:55.7]} 24... Rab8 {[%clk 0:02:07.2]} 25.
a4 {[%clk 0:00:55.4]} 25... h5 {[%clk 0:02:06.2]} 26. h3 {[%clk 0:00:52.4]}
26... Rxb1 {[%clk 0:02:06]} 27. Rxb1 {[%clk 0:00:52.2]} 27... e3 {[%clk
0:02:06.9]} 28. Qxe3 {[%clk 0:00:49.6]} 28... Qxc2 {[%clk 0:02:06.8]} 29. Rb7
{[%clk 0:00:45.7]} 29... Qxa4 {[%clk 0:02:02.7]} 30. Qd3 {[%clk 0:00:39.3]}
30... Qe4 {[%clk 0:02:00.3]} 31. Qd1 {[%clk 0:00:30.9]} 31... Qd5 {[%clk
0:02:00.3]} 32. Qxd5 {[%clk 0:00:28.8]} 32... cxd5 {[%clk 0:01:44.3]} 33. Ra7
{[%clk 0:00:27.9]} 33... Ne4 {[%clk 0:01:42.2]} 34. c4 {[%clk 0:00:20.5]} 34...
Nxc5 {[%clk 0:01:41.4]} 35. Rxa5 {[%clk 0:00:20.2]} 35... Nd3 {[%clk 0:01:42]}
36. Rxd5 {[%clk 0:00:20.4]} 36... e4 {[%clk 0:01:42.6]} 37. g3 {[%clk
0:00:20.1]} 37... Rc8 {[%clk 0:01:41.9]} 38. Rd4 {[%clk 0:00:19.8]} 38... Ne5
{[%clk 0:01:42]} 39. Rxe4 {[%clk 0:00:19.6]} 39... Nxc4 {[%clk 0:01:42.6]} 40.
h4 {[%clk 0:00:19.9]} 40... g6 {[%clk 0:01:43.1]} 41. Kg2 {[%clk 0:00:20]} 41...
Nd6 {[%clk 0:01:43.2]} 42. Re2 {[%clk 0:00:20.6]} 42... Nf5 {[%clk 0:01:43.6]}
43. Ra2 {[%clk 0:00:21.5]} 43... Rc3 {[%clk 0:01:43.3]} 44. Re2 {[%clk
0:00:21.9]} 44... Kg7 {[%clk 0:01:43.7]} 45. Ra2 {[%clk 0:00:22.1]} 45... Nd4
{[%clk 0:01:44.2]} 46. Rd2 {[%clk 0:00:22.1]} 46... Rc4 {[%clk 0:01:44.8]} 47.
Ra2 {[%clk 0:00:21.8]} 47... Rc2 {[%clk 0:01:45.1]} 48. Ra4 {[%clk 0:00:21.7]}
48... Nf5 {[%clk 0:01:45.6]} 49. Rf4 {[%clk 0:00:22]} 49... Nh6 {[%clk
0:01:46.1]} 50. Rf3 {[%clk 0:00:21.9]} 50... Ng4 {[%clk 0:01:46.6]} 51. Rf4
{[%clk 0:00:22.8]} 51... f6 {[%clk 0:01:47.2]} 52. Rf3 {[%clk 0:00:23.1]} 52...
Kf7 {[%clk 0:01:48]} 53. Kg1 {[%clk 0:00:23]} 53... Ke6 {[%clk 0:01:48.5]} 54.
Rf4 {[%clk 0:00:23.4]} 54... Ke5 {[%clk 0:01:49.2]} 55. Rf3 {[%clk 0:00:23.8]}
55... Ke4 {[%clk 0:01:46.4]} 56. Rf4+ {[%clk 0:00:24]} 56... Kd3 {[%clk
0:01:47]} 57. Kg2 {[%clk 0:00:24.2]} 57... f5 {[%clk 0:01:44.5]} 58. Rf3+ {[%clk
0:00:24.1]} 58... Ke2 {[%clk 0:01:44.9]} 59. Rf4 {[%clk 0:00:25]} 59... Ke1
{[%clk 0:01:45.2]} 60. Kg1 {[%clk 0:00:24.2]} 60... Rxf2 {[%clk 0:01:45.1]} 61.
Rc4 {[%clk 0:00:23]} 61... Rf1+ {[%clk 0:01:44.5]} 62. Kg2 {[%clk 0:00:23]}
62... Ne3+ {[%clk 0:01:45.4]} 63. Kh3 {[%clk 0:00:23.8]} 63... Nxc4 {[%clk
0:01:44.3]} 64. g4 {[%clk 0:00:24.7]} 64... Rf3+ {[%clk 0:01:44]} 0-1

[Event "Early-Titled-Tuesday-Blitz-October-17-2023"]
[Site "Chess.com"]
[Date "2023.10.17"]
[Round "3"]
[White "GaiozNigalidze"]
[Black "Payyappat"]
[Result "1-0"]
[WhiteElo "2711"]
[BlackElo "2477"]
[TimeControl "180+1"]
[EndTime "8:28:51 PDT"]
[Termination "GaiozNigalidze won on time"]

1. e4 {[%clk 0:03:00.9]} 1... c6 {[%clk 0:02:53.4]} 2. h4 {[%clk 0:02:58.6]}
2... d5 {[%clk 0:02:53.9]} 3. exd5 {[%clk 0:02:58.7]} 3... cxd5 {[%clk
0:02:53.6]} 4. h5 {[%clk 0:02:59.3]} 4... e5 {[%clk 0:02:51.9]} 5. d4 {[%clk
0:02:58.2]} 5... exd4 {[%clk 0:02:48.1]} 6. h6 {[%clk 0:02:58.7]} 6... Nc6
{[%clk 0:02:40.8]} 7. hxg7 {[%clk 0:02:50.3]} 7... Bxg7 {[%clk 0:02:41.7]} 8.
Nf3 {[%clk 0:02:47.1]} 8... Bg4 {[%clk 0:02:38.3]} 9. Bd3 {[%clk 0:02:47.2]}
9... Nf6 {[%clk 0:02:35.9]} 10. Bg5 {[%clk 0:02:44.9]} 10... Qb6 {[%clk
0:02:31]} 11. Nbd2 {[%clk 0:02:27.6]} 11... O-O-O {[%clk 0:02:25.8]} 12. O-O
{[%clk 0:02:22.2]} 12... Rhg8 {[%clk 0:02:12.2]} 13. Re1 {[%clk 0:02:11.2]}
13... Qxb2 {[%clk 0:01:42.3]} 14. Rb1 {[%clk 0:02:03.2]} 14... Qa3 {[%clk
0:01:36.5]} 15. Rb3 {[%clk 0:01:28.5]} 15... Qd6 {[%clk 0:01:29.3]} 16. Qb1
{[%clk 0:01:28.2]} 16... Rd7 {[%clk 0:01:23.4]} 17. Bb5 {[%clk 0:00:56.7]} 17...
Ne4 {[%clk 0:01:01.6]} 18. Nxe4 {[%clk 0:00:51.6]} 18... dxe4 {[%clk 0:00:59.7]}
19. Rxe4 {[%clk 0:00:52.2]} 19... Bxf3 {[%clk 0:00:57.6]} 20. Rxf3 {[%clk
0:00:46]} 20... Qd5 {[%clk 0:00:45.5]} 21. Rg4 {[%clk 0:00:28]} 21... Bh6 {[%clk
0:00:11]} 22. Bxc6 {[%clk 0:00:15.3]} 22... bxc6 {[%clk 0:00:10.1]} 23. Bf4
{[%clk 0:00:12.6]} 1-0

[Event "Early-Titled-Tuesday-Blitz-October-17-2023"]
[Site "Chess.com"]
[Date "2023.10.17"]
[Round "3"]
[White "ChessRespected"]
[Black "Nitzan_Steinberg"]
[Result "0-1"]
[WhiteElo "2593"]
[BlackElo "2847"]
[TimeControl "180+1"]
[EndTime "8:28:56 PDT"]
[Termination "Nitzan_Steinberg won on time"]

1. d4 {[%clk 0:03:00.9]} 1... Nf6 {[%clk 0:02:57.7]} 2. Nf3 {[%clk 0:03:01]}
2... g6 {[%clk 0:02:55.5]} 3. g3 {[%clk 0:03:00]} 3... Bg7 {[%clk 0:02:54.6]} 4.
Bg2 {[%clk 0:02:59.3]} 4... O-O {[%clk 0:02:55.5]} 5. c4 {[%clk 0:02:59.5]} 5...
d6 {[%clk 0:02:52.8]} 6. Nc3 {[%clk 0:02:59.5]} 6... Nbd7 {[%clk 0:02:52.8]} 7.
O-O {[%clk 0:02:58.8]} 7... e5 {[%clk 0:02:51.8]} 8. e4 {[%clk 0:02:58.9]} 8...
Re8 {[%clk 0:02:48]} 9. Re1 {[%clk 0:02:58.7]} 9... exd4 {[%clk 0:02:46.7]} 10.
Nxd4 {[%clk 0:02:59.6]} 10... Nc5 {[%clk 0:02:47.3]} 11. h3 {[%clk 0:02:56]}
11... Bd7 {[%clk 0:02:42]} 12. Rb1 {[%clk 0:02:50.6]} 12... a5 {[%clk
0:02:41.8]} 13. b3 {[%clk 0:02:46.1]} 13... Qc8 {[%clk 0:02:39.4]} 14. Kh2
{[%clk 0:02:41.3]} 14... h5 {[%clk 0:02:36.5]} 15. Bg5 {[%clk 0:02:34.6]} 15...
Nh7 {[%clk 0:02:36.6]} 16. Be3 {[%clk 0:02:33.8]} 16... Nf8 {[%clk 0:02:30.8]}
17. Qc2 {[%clk 0:02:25.4]} 17... Nfe6 {[%clk 0:02:30.2]} 18. Ndb5 {[%clk
0:02:19.5]} 18... h4 {[%clk 0:02:22.6]} 19. Nd5 {[%clk 0:01:51]} 19... hxg3+
{[%clk 0:02:18.7]} 20. fxg3 {[%clk 0:01:51.9]} 20... Be5 {[%clk 0:02:06.6]} 21.
Rf1 {[%clk 0:01:49.6]} 21... Qd8 {[%clk 0:02:05.8]} 22. Qf2 {[%clk 0:01:46.8]}
22... Rf8 {[%clk 0:01:51.6]} 23. Bf4 {[%clk 0:01:39.8]} 23... Bg7 {[%clk
0:01:30]} 24. Rbd1 {[%clk 0:01:17.4]} 24... Nxf4 {[%clk 0:01:18]} 25. gxf4
{[%clk 0:01:10.8]} 25... c6 {[%clk 0:01:18.1]} 26. Nxd6 {[%clk 0:01:08.6]} 26...
Nxe4 {[%clk 0:01:05.6]} 27. Nxe4 {[%clk 0:01:06.7]} 27... cxd5 {[%clk
0:01:06.1]} 28. Rxd5 {[%clk 0:01:06.7]} 28... Qc7 {[%clk 0:01:05.4]} 29. Qh4
{[%clk 0:00:52.6]} 29... Bc6 {[%clk 0:01:00.6]} 30. Ng5 {[%clk 0:00:52.3]} 30...
Rfe8 {[%clk 0:00:52.3]} 31. Rc5 {[%clk 0:00:44.2]} 31... Re2 {[%clk 0:00:49.6]}
32. Rf2 {[%clk 0:00:35.9]} 32... Rae8 {[%clk 0:00:47.3]} 33. Bxc6 {[%clk
0:00:27.7]} 33... bxc6 {[%clk 0:00:47.5]} 34. Qh7+ {[%clk 0:00:10.4]} 34... Kf8
{[%clk 0:00:47.8]} 35. Kg1 {[%clk 0:00:08.5]} 35... Rxf2 {[%clk 0:00:45.8]} 36.
Kxf2 {[%clk 0:00:05.3]} 36... Qxf4+ {[%clk 0:00:45.6]} 37. Nf3 {[%clk
0:00:06.2]} 37... Bd4+ {[%clk 0:00:44.5]} 0-1

[Event "Early-Titled-Tuesday-Blitz-October-17-2023"]
[Site "Chess.com"]
[Date "2023.10.17"]
[Round "3"]
[White "Anton_Demchenko"]
[Black "AleksanderHnydiuk"]
[Result "1-0"]
[WhiteElo "3016"]
[BlackElo "2509"]
[TimeControl "180+1"]
[EndTime "8:28:57 PDT"]
[Termination "Anton_Demchenko won on time"]

1. e4 {[%clk 0:03:00.9]} 1... Nf6 {[%clk 0:03:00.3]} 2. e5 {[%clk 0:02:58.2]}
2... Nd5 {[%clk 0:03:00.6]} 3. d4 {[%clk 0:02:58.9]} 3... d6 {[%clk 0:03:00.9]}
4. Nf3 {[%clk 0:02:59.6]} 4... dxe5 {[%clk 0:03:01.3]} 5. Nxe5 {[%clk
0:03:00.3]} 5... c6 {[%clk 0:03:02]} 6. h3 {[%clk 0:02:54.9]} 6... g6 {[%clk
0:02:43.6]} 7. Bc4 {[%clk 0:02:50.8]} 7... Bg7 {[%clk 0:02:43.6]} 8. O-O {[%clk
0:02:51.1]} 8... O-O {[%clk 0:02:43.7]} 9. Re1 {[%clk 0:02:51.8]} 9... Nd7
{[%clk 0:02:39.3]} 10. Nf3 {[%clk 0:02:51.9]} 10... N7b6 {[%clk 0:02:28.1]} 11.
Bf1 {[%clk 0:02:43.3]} 11... Bf5 {[%clk 0:02:28.7]} 12. c4 {[%clk 0:01:47.2]}
12... Nb4 {[%clk 0:02:26.5]} 13. Na3 {[%clk 0:01:47.5]} 13... c5 {[%clk
0:02:20.4]} 14. Bg5 {[%clk 0:01:13.7]} 14... Re8 {[%clk 0:02:02.3]} 15. g4
{[%clk 0:01:04.3]} 15... Bc8 {[%clk 0:01:40.6]} 16. Qd2 {[%clk 0:01:01.3]} 16...
Nc6 {[%clk 0:01:31.9]} 17. d5 {[%clk 0:00:56.3]} 17... Nd4 {[%clk 0:01:30.7]}
18. Nxd4 {[%clk 0:00:56.8]} 18... Bxd4 {[%clk 0:01:28.4]} 19. Nb5 {[%clk
0:00:56.9]} 19... Bg7 {[%clk 0:01:22.8]} 20. Rad1 {[%clk 0:00:43]} 20... a6
{[%clk 0:01:05.8]} 21. Nc3 {[%clk 0:00:43.1]} 21... Nd7 {[%clk 0:00:34.1]} 22.
Bg2 {[%clk 0:00:36.5]} 22... Ne5 {[%clk 0:00:32.4]} 23. b3 {[%clk 0:00:37.2]}
23... Bd7 {[%clk 0:00:26.8]} 24. Ne4 {[%clk 0:00:28.8]} 24... f6 {[%clk
0:00:20.4]} 25. Be3 {[%clk 0:00:27.7]} 25... Nf7 {[%clk 0:00:19.2]} 26. Nxc5
{[%clk 0:00:27.5]} 26... b5 {[%clk 0:00:11.2]} 27. Ne6 {[%clk 0:00:23.7]} 27...
Bxe6 {[%clk 0:00:05]} 28. dxe6 {[%clk 0:00:24.6]} 28... Ne5 {[%clk 0:00:03.4]}
29. f4 {[%clk 0:00:22]} 1-0

[Event "Early-Titled-Tuesday-Blitz-October-17-2023"]
[Site "Chess.com"]
[Date "2023.10.17"]
[Round "3"]
[White "topin8"]
[Black "sokidze"]
[Result "0-1"]
[WhiteElo "2493"]
[BlackElo "2780"]
[TimeControl "180+1"]
[EndTime "8:28:58 PDT"]
[Termination "sokidze won on time"]

1. e4 {[%clk 0:03:00.9]} 1... c5 {[%clk 0:02:58.8]} 2. Nf3 {[%clk 0:03:01.1]}
2... Nc6 {[%clk 0:02:58.6]} 3. Bb5 {[%clk 0:03:00.8]} 3... g6 {[%clk 0:02:57.6]}
4. O-O {[%clk 0:03:00.3]} 4... Bg7 {[%clk 0:02:58.2]} 5. Re1 {[%clk 0:03:00.5]}
5... e5 {[%clk 0:02:56.2]} 6. b4 {[%clk 0:03:00.3]} 6... cxb4 {[%clk 0:02:27.9]}
7. a3 {[%clk 0:02:59.2]} 7... Nge7 {[%clk 0:02:22]} 8. axb4 {[%clk 0:02:49.4]}
8... O-O {[%clk 0:02:22.5]} 9. Bb2 {[%clk 0:02:30.2]} 9... d6 {[%clk 0:02:19.3]}
10. d4 {[%clk 0:02:08.9]} 10... Bg4 {[%clk 0:02:11.8]} 11. d5 {[%clk 0:01:45.4]}
11... Nxb4 {[%clk 0:01:51.6]} 12. c3 {[%clk 0:01:38.5]} 12... Qb6 {[%clk
0:01:45.8]} 13. Na3 {[%clk 0:01:02.6]} 13... Nbxd5 {[%clk 0:01:18.4]} 14. exd5
{[%clk 0:00:59.2]} 14... a6 {[%clk 0:01:19]} 15. c4 {[%clk 0:00:50.5]} 15...
axb5 {[%clk 0:01:16.6]} 16. Nxb5 {[%clk 0:00:51.4]} 16... Rxa1 {[%clk
0:01:03.8]} 17. Bxa1 {[%clk 0:00:42.5]} 17... Rc8 {[%clk 0:00:51.4]} 18. Qa4
{[%clk 0:00:20.6]} 18... Bxf3 {[%clk 0:00:42.3]} 19. gxf3 {[%clk 0:00:21.5]}
19... Nf5 {[%clk 0:00:42.2]} 20. Bc3 {[%clk 0:00:15]} 20... Qc5 {[%clk
0:00:26.4]} 21. Re4 {[%clk 0:00:14.7]} 21... Qb6 {[%clk 0:00:11.8]} 22. Ba5
{[%clk 0:00:13.9]} 22... Qa6 {[%clk 0:00:12.1]} 23. Qb4 {[%clk 0:00:09.4]} 23...
b6 {[%clk 0:00:11.7]} 24. Nxd6 {[%clk 0:00:07.5]} 24... bxa5 {[%clk 0:00:11.8]}
0-1

[Event "Early-Titled-Tuesday-Blitz-October-17-2023"]
[Site "Chess.com"]
[Date "2023.10.17"]
[Round "3"]
[White "AlivodicDario"]
[Black "NowInChess"]
[Result "1-0"]
[WhiteElo "2435"]
[BlackElo "2203"]
[TimeControl "180+1"]
[EndTime "8:29:06 PDT"]
[Termination "AlivodicDario won on time"]

1. d4 {[%clk 0:02:20]} 1... Nf6 {[%clk 0:02:58.3]} 2. c4 {[%clk 0:02:20.5]} 2...
c5 {[%clk 0:02:58.3]} 3. d5 {[%clk 0:02:20.8]} 3... b5 {[%clk 0:02:58.5]} 4.
cxb5 {[%clk 0:02:21.7]} 4... a6 {[%clk 0:02:58.6]} 5. b6 {[%clk 0:02:22.3]} 5...
d6 {[%clk 0:02:55]} 6. Nc3 {[%clk 0:02:22.9]} 6... g6 {[%clk 0:02:53.9]} 7. a4
{[%clk 0:02:23.2]} 7... a5 {[%clk 0:02:53.4]} 8. e4 {[%clk 0:02:22.7]} 8... Bg7
{[%clk 0:02:44.4]} 9. Bb5+ {[%clk 0:02:22.4]} 9... Bd7 {[%clk 0:02:44.1]} 10.
Qd3 {[%clk 0:02:17.6]} 10... Qxb6 {[%clk 0:02:39.1]} 11. Nf3 {[%clk 0:02:16.1]}
11... O-O {[%clk 0:02:38.8]} 12. Nd2 {[%clk 0:02:16.3]} 12... Na6 {[%clk
0:02:29.6]} 13. Nc4 {[%clk 0:02:16.2]} 13... Bxb5 {[%clk 0:02:05.2]} 14. axb5
{[%clk 0:02:05.5]} 14... Nb4 {[%clk 0:02:05.2]} 15. Nxb6 {[%clk 0:02:04.5]}
15... Nxd3+ {[%clk 0:02:04.5]} 16. Kf1 {[%clk 0:01:08.6]} 16... Rab8 {[%clk
0:01:35.9]} 17. Nc4 {[%clk 0:01:08.5]} 17... Nd7 {[%clk 0:01:24.5]} 18. Ke2
{[%clk 0:01:00.5]} 18... Nxc1+ {[%clk 0:01:12.3]} 19. Rhxc1 {[%clk 0:01:01.4]}
19... Bxc3 {[%clk 0:01:10.6]} 20. bxc3 {[%clk 0:01:02.3]} 20... Rxb5 {[%clk
0:01:10.2]} 21. Rxa5 {[%clk 0:01:01.5]} 21... Rxa5 {[%clk 0:01:00.7]} 22. Nxa5
{[%clk 0:01:02.4]} 22... Ra8 {[%clk 0:01:00]} 23. Ra1 {[%clk 0:00:58.6]} 23...
Ne5 {[%clk 0:00:47.7]} 24. Nb3 {[%clk 0:00:50.2]} 24... Rb8 {[%clk 0:00:45.5]}
25. Rb1 {[%clk 0:00:48.3]} 25... Nc4 {[%clk 0:00:24]} 26. Nd2 {[%clk 0:00:48.3]}
26... Rb2 {[%clk 0:00:14.3]} 27. Rxb2 {[%clk 0:00:45.5]} 27... Nxb2 {[%clk
0:00:15.2]} 28. f4 {[%clk 0:00:38.4]} 28... f5 {[%clk 0:00:14.7]} 29. e5 {[%clk
0:00:31.5]} 29... dxe5 {[%clk 0:00:11.4]} 30. fxe5 {[%clk 0:00:31.6]} 30... Kf7
{[%clk 0:00:09.2]} 31. Ke3 {[%clk 0:00:25.8]} 31... g5 {[%clk 0:00:04.6]} 32. g3
{[%clk 0:00:25.1]} 32... h5 {[%clk 0:00:03.9]} 33. Nb3 {[%clk 0:00:24.4]} 33...
Nc4+ {[%clk 0:00:02.2]} 34. Ke2 {[%clk 0:00:23.7]} 34... Nxe5 {[%clk 0:00:01.8]}
35. Nxc5 {[%clk 0:00:24.2]} 1-0

[Event "Early-Titled-Tuesday-Blitz-October-17-2023"]
[Site "Chess.com"]
[Date "2023.10.17"]
[Round "3"]
[White "BelaKis"]
[Black "Szczor"]
[Result "0-1"]
[WhiteElo "2175"]
[BlackElo "2532"]
[TimeControl "180+1"]
[EndTime "8:29:07 PDT"]
[Termination "Szczor won on time"]

1. d4 {[%clk 0:03:00.9]} 1... Nf6 {[%clk 0:02:59.8]} 2. c4 {[%clk 0:03:00.9]}
2... e6 {[%clk 0:03:00]} 3. a3 {[%clk 0:03:01.3]} 3... c5 {[%clk 0:02:59.4]} 4.
e3 {[%clk 0:03:01.2]} 4... cxd4 {[%clk 0:02:59.1]} 5. exd4 {[%clk 0:03:02.1]}
5... d5 {[%clk 0:02:59.4]} 6. Nc3 {[%clk 0:03:02.5]} 6... Be7 {[%clk 0:02:58.6]}
7. Nf3 {[%clk 0:03:02.8]} 7... O-O {[%clk 0:02:58.8]} 8. c5 {[%clk 0:02:54.9]}
8... a5 {[%clk 0:02:42.1]} 9. Rb1 {[%clk 0:02:47.2]} 9... b6 {[%clk 0:02:36.8]}
10. b4 {[%clk 0:02:47]} 10... axb4 {[%clk 0:02:36.8]} 11. axb4 {[%clk
0:02:47.9]} 11... bxc5 {[%clk 0:02:36.1]} 12. bxc5 {[%clk 0:02:48.2]} 12... Nc6
{[%clk 0:02:26]} 13. Bb5 {[%clk 0:02:38.8]} 13... Qc7 {[%clk 0:02:19.3]} 14. O-O
{[%clk 0:02:37.9]} 14... Ba6 {[%clk 0:02:13.8]} 15. Re1 {[%clk 0:02:23.9]} 15...
Rfb8 {[%clk 0:02:04.9]} 16. h3 {[%clk 0:02:14.2]} 16... Ne4 {[%clk 0:01:53.4]}
17. Nxe4 {[%clk 0:02:01.2]} 17... dxe4 {[%clk 0:01:52.2]} 18. Bxc6 {[%clk
0:01:49.1]} 18... Qxc6 {[%clk 0:01:47.9]} 19. Ne5 {[%clk 0:01:35.7]} 19... Qd5
{[%clk 0:01:46.3]} 20. Rxb8+ {[%clk 0:01:17.9]} 20... Rxb8 {[%clk 0:01:47.2]}
21. Qa4 {[%clk 0:00:50]} 21... Bd3 {[%clk 0:01:35.8]} 22. Qa7 {[%clk 0:00:42.3]}
22... Qb7 {[%clk 0:01:16.3]} 23. Qxb7 {[%clk 0:00:28.6]} 23... Rxb7 {[%clk
0:01:17.2]} 24. Be3 {[%clk 0:00:19.9]} 24... Rb2 {[%clk 0:00:52.9]} 25. Ra1
{[%clk 0:00:19.2]} 25... Rb1+ {[%clk 0:00:43.6]} 26. Rxb1 {[%clk 0:00:18.8]}
26... Bxb1 {[%clk 0:00:44.5]} 27. Kf1 {[%clk 0:00:19]} 27... Ba2 {[%clk
0:00:34.1]} 28. Ke1 {[%clk 0:00:18.1]} 28... Bd5 {[%clk 0:00:33.9]} 29. Kd2
{[%clk 0:00:18.1]} 29... f6 {[%clk 0:00:31.1]} 30. Ng4 {[%clk 0:00:16.3]} 30...
g5 {[%clk 0:00:26.4]} 31. Nh2 {[%clk 0:00:16.1]} 31... f5 {[%clk 0:00:22.7]} 32.
g3 {[%clk 0:00:14.4]} 32... h6 {[%clk 0:00:20.7]} 33. Kc2 {[%clk 0:00:14.6]}
33... Bd8 {[%clk 0:00:21]} 34. Nf1 {[%clk 0:00:15]} 34... Bc7 {[%clk 0:00:21.4]}
35. Nd2 {[%clk 0:00:15.4]} 35... f4 {[%clk 0:00:21.4]} 0-1

[Event "Early-Titled-Tuesday-Blitz-October-17-2023"]
[Site "Chess.com"]
[Date "2023.10.17"]
[Round "3"]
[White "MidnightFox"]
[Black "Ishowmoves57"]
[Result "1-0"]
[WhiteElo "2485"]
[BlackElo "2221"]
[TimeControl "180+1"]
[EndTime "8:29:07 PDT"]
[Termination "MidnightFox won on time"]

1. d4 {[%clk 0:03:00.9]} 1... Nf6 {[%clk 0:02:57.8]} 2. c4 {[%clk 0:02:58.2]}
2... e6 {[%clk 0:02:57.8]} 3. g3 {[%clk 0:02:56.6]} 3... Bb4+ {[%clk 0:02:57.8]}
4. Nd2 {[%clk 0:02:56.1]} 4... O-O {[%clk 0:02:54.3]} 5. Bg2 {[%clk 0:02:55.7]}
5... Qe7 {[%clk 0:02:54.3]} 6. Nf3 {[%clk 0:02:55.5]} 6... d6 {[%clk 0:02:50.3]}
7. O-O {[%clk 0:02:50.7]} 7... Bxd2 {[%clk 0:02:50.1]} 8. Qxd2 {[%clk
0:02:49.4]} 8... e5 {[%clk 0:02:50.7]} 9. b3 {[%clk 0:02:48.6]} 9... Bf5 {[%clk
0:02:41.7]} 10. Ba3 {[%clk 0:02:44.4]} 10... exd4 {[%clk 0:02:34.6]} 11. Nxd4
{[%clk 0:02:40.8]} 11... Be4 {[%clk 0:02:33.7]} 12. f3 {[%clk 0:02:39.5]} 12...
Bg6 {[%clk 0:02:31.5]} 13. e4 {[%clk 0:02:39.5]} 13... Nc6 {[%clk 0:02:31.6]}
14. Rad1 {[%clk 0:02:37.6]} 14... Nxd4 {[%clk 0:02:30]} 15. Qxd4 {[%clk
0:02:38.5]} 15... Nd7 {[%clk 0:02:29.2]} 16. f4 {[%clk 0:02:36.5]} 16... Bh5
{[%clk 0:02:14.8]} 17. Rd2 {[%clk 0:02:34.7]} 17... Nc5 {[%clk 0:02:07.1]} 18.
e5 {[%clk 0:02:30.4]} 18... Ne6 {[%clk 0:01:47.7]} 19. exd6 {[%clk 0:02:18]}
19... cxd6 {[%clk 0:01:30.7]} 20. Qxd6 {[%clk 0:02:17.3]} 20... Qxd6 {[%clk
0:01:10.5]} 21. Bxd6 {[%clk 0:02:15.4]} 21... Rfd8 {[%clk 0:01:08.4]} 22. c5
{[%clk 0:02:08.9]} 22... Nxc5 {[%clk 0:00:56.6]} 23. Rff2 {[%clk 0:01:54.1]}
23... Ne6 {[%clk 0:00:45.7]} 24. Bxb7 {[%clk 0:01:50.4]} 24... Rac8 {[%clk
0:00:36.7]} 25. Bxc8 {[%clk 0:01:48.4]} 25... Rxc8 {[%clk 0:00:37.6]} 26. h3
{[%clk 0:01:43]} 26... f5 {[%clk 0:00:34.6]} 27. Be5 {[%clk 0:01:29.4]} 27...
Bf7 {[%clk 0:00:21.4]} 28. Rd7 {[%clk 0:01:26.7]} 28... Rc1+ {[%clk 0:00:19]}
29. Kh2 {[%clk 0:01:22.3]} 29... h6 {[%clk 0:00:12.3]} 30. Rxa7 {[%clk
0:01:18.1]} 30... Nc5 {[%clk 0:00:12.5]} 31. Rc7 {[%clk 0:01:16.1]} 31... Bd5
{[%clk 0:00:12.4]} 32. Rg2 {[%clk 0:01:09.4]} 32... Bxg2 {[%clk 0:00:11.2]} 33.
Kxg2 {[%clk 0:01:10.3]} 33... Rc2+ {[%clk 0:00:11.2]} 34. Kf3 {[%clk 0:01:08.1]}
34... g5 {[%clk 0:00:06.2]} 35. Bd4 {[%clk 0:01:04.5]} 35... g4+ {[%clk
0:00:06.5]} 36. hxg4 {[%clk 0:01:04.2]} 36... fxg4+ {[%clk 0:00:06.8]} 37. Kxg4
{[%clk 0:01:05.1]} 37... h5+ {[%clk 0:00:06.9]} 38. Kf5 {[%clk 0:01:02.9]} 38...
Rd2 {[%clk 0:00:04.6]} 39. Bxc5 {[%clk 0:01:01.3]} 39... Rd5+ {[%clk 0:00:04.7]}
40. Kg6 {[%clk 0:01:01]} 40... Rd8 {[%clk 0:00:05.5]} 41. Rg7+ {[%clk
0:00:57.1]} 41... Kh8 {[%clk 0:00:05.5]} 42. Rh7+ {[%clk 0:00:57.2]} 42... Kg8
{[%clk 0:00:05.7]} 43. Rc7 {[%clk 0:00:51.4]} 43... h4 {[%clk 0:00:04.9]} 44.
gxh4 {[%clk 0:00:51.4]} 44... Re8 {[%clk 0:00:05]} 45. h5 {[%clk 0:00:51]} 45...
Re6+ {[%clk 0:00:05.1]} 46. Kg5 {[%clk 0:00:50.9]} 46... Re8 {[%clk 0:00:03.6]}
47. h6 {[%clk 0:00:51.1]} 1-0